Cogmind - Beta 13 @@@ ROGUE MODE // 2024.04.15 @ 20:05:42 Player: Gabe+Kate4EVR Result: Destroyed by G-47 Trooper with Particle Gun Performance ------------- Evolutions (2) 1000 Regions Visited (3) 600 Robots Destroyed (22) 110 Value Destroyed (826) 826 Prototype IDs (0) 0 Alien Tech Used (0) 0 Bonus (0) 0 TOTAL SCORE: 2536 Bonus ------- None Cogmind --------- Core Integrity 0/550 Matter 219/300 Energy 99/100 System Corruption 0% Temperature Cool (9) Movement Core (200) Ox3 Location -8/Materials Parts ------- > --- POWER (1) -------- (None) > --- PROPULSION (4) --- (None) > --- UTILITY (4) ------ Medium Storage Unit Advanced Visual Processing Unit Improved Targeting Computer Improved Targeting Computer > --- WEAPON (2) ------- (None) > --- INVENTORY (10) --- Light Ion Engine Large Storage Unit High-capacity Matter Pod (200) Improved Terrain Scanner Hardened Medium Armor Plating Reactive Plating Subdweller Laser Peak State ------------ > --- POWER ------------ Deuterium Engine > --- PROPULSION ------- Subdweller Monowheel Hover Unit Hover Unit Hover Unit > --- UTILITY ---------- Medium Storage Unit Improved Targeting Computer Hardened Medium Armor Plating Makeshift System Shield > --- WEAPON ----------- Subdweller Laser EM Pulse Cannon > --- INVENTORY -------- Light Ion Engine Disposable Heat Sink High-capacity Matter Pod Improved Terrain Scanner Subdweller Laser Grenade Launcher Piercing Trap [Rating: 24] Favorites ----------- Power Light Nuclear Core Engine Ion Engine Power Core Light Nuclear Core Propulsion Hover Unit Treads Advanced Treads Leg Aluminum Leg Wheel Subdweller Monowheel Hover Unit Hover Unit Utility Medium Storage Unit Device Disposable Heat Sink Storage Medium Storage Unit Processor Improved Targeting Computer Hackware Hacking Suite Protection Propulsion Shielding Weapon Medium Laser Energy Gun Medium Laser Energy Cannon Beam Cannon Ballistic Gun Assault Rifle Ballistic Cannon Battle Cannon Launcher Grenade Launcher Special Weapon Welding Torch Build | -11 -10 -10 -8 ------- Run | Yrd Mat Sub Mat Slots Evolved 4 | . . . 4 Power . | . . . . Propulsion 2 | . . . 2 Utility 2 | . . . 2 Weapon . | . . . . Parts Attached 49 | 5 12 11 21 Power 5 | 1 2 . 2 Engine 3 | 1 . . 2 Core 2 | . 2 . . Reactor . | . . . . Propulsion 18 | 2 5 5 6 Treads 1 | . . . 1 Leg 4 | 2 1 . 1 Wheel 4 | . . 3 1 Hover 9 | . 4 2 3 Flight . | . . . . Utility 15 | . 5 2 8 Device 6 | . 1 2 3 Storage 1 | . 1 . . Processor 4 | . 1 . 3 Hackware 2 | . 1 . 1 Protection 2 | . 1 . 1 Artifact . | . . . . Weapon 11 | 2 . 4 5 Energy Gun 4 | 1 . 1 2 Energy Cannon 2 | . . 1 1 Ballistic Gun 1 | 1 . . . Ballistic Cannon 2 | . . 2 . Launcher 1 | . . . 1 Special Weapon 1 | . . . 1 Impact Weapon . | . . . . Slashing Weapon . | . . . . Piercing Weapon . | . . . . Special Melee Weapon . | . . . . Unidentified Prototypes . | . . . . Parts Lost 19 | . . 6 13 Power 2 | . . 1 1 Propulsion 10 | . . 3 7 Utility 1 | . . . 1 Weapon 6 | . . 2 4 Highest Loss Streak 8 | . . 3 8 To Critical Strikes . | . . . . Average Slot Usage (%) 86 | . 88 95 72 Engine 5 | . 7 . 3 Core 6 | . 6 12 . Leg 8 | . 14 . . Wheel 5 | . . 18 5 Hover 12 | . 13 8 13 Device 3 | . 1 7 2 Storage 9 | . 7 14 9 Processor 6 | . 3 . 18 Hackware 1 | . 2 . . Protection 3 | . 2 6 3 Energy Gun 12 | . 14 14 5 Energy Cannon 2 | . . 5 3 Ballistic Gun 8 | . 14 2 . Ballistic Cannon 1 | . . 4 . Naked Turns . | . . . . Heaviest Build 38 | 9 20 23 38 Greatest Support 40 | 20 20 40 22 Greatest Overweight (x) 4 | 2 3 1 4 Average Overweight (x) . | . . . 1 Largest Inventory Capacity 10 | 5 10 10 10 Average Capacity 8 | 5 7 10 10 Most Carried 10 | 3 10 10 9 Average Carried 7 | . 7 9 7 Final Capacity 10 | 5 10 10 10 Final Carried 10 | 3 10 10 7 Class Distribution -------------------- 56% | Scavenger-Mutant 43% | Mutant Dominant Class ---------------- Mutant | -10/Materials Scavenger-Mutant | -10/Subcaves Mutant | -8/Materials Resources | -11 -10 -10 -8 ----------- Run | Yrd Mat Sub Mat Matter Collected 1023 | 195 540 119 169 Remotely . | . . . . Salvage Created 930 | . 394 287 249 Parts 47 | . 26 15 6 Haulers Intercepted 1 | . 1 . . Recyclers Shooed 2 | . 1 . 1 Parts Field Recycled . | . . . . Retrieved Matter . | . . . . Parts Self-Destructed 3 | . . 3 . Prevented . | . . . . Kills | -11 -10 -10 -8 ------- Run | Yrd Mat Sub Mat Combat Hostiles Destroyed 19 | . 8 6 5 Guns 11 | . 8 2 1 Cannons 6 | . . 4 2 AOE 2 | . . . 2 Classes Destroyed 5 | . 4 . 1 Hauler 1 | . 1 . . Operator 1 | . 1 . . Watcher 1 | . . . 1 Grunt 13 | . 7 1 5 Subdweller 6 | . 1 5 . Best Kill Streak 4 | . 4 4 3 Combat Bots Only 4 | . 4 4 3 Max Kills in Single Turn 1 | . 1 1 1 Gunslinging . | . . . . Exploded 1 | . . . 1 Melee . | . . . . Uniques/NPCs Destroyed . | . . . . Combat | -11 -10 -10 -8 -------- Run | Yrd Mat Sub Mat Hostile Shots Fired 190 | . 36 39 115 Missed 60 | . 15 11 34 Damage Taken 2504 | . 249 761 1494 Core 754 | . 74 121 559 Absorbed by Shields . | . . . . Redirected to Shielding 38 | . . 38 . Regen/Repaired (Parts) 32 | . 32 . . Core Remaining (%) 61 | 100 . 22 . Volleys Fired 120 | . 55 32 33 Largest 2 | . 2 2 2 Hottest 123 | . 70 120 123 Shots Fired 205 | . 99 60 46 Gun 150 | . 99 34 17 Cannon 42 | . . 26 16 Launcher 10 | . . . 10 Special 3 | . . . 3 Kinetic 63 | . 55 8 . Thermal 116 | . 44 52 20 Explosive 10 | . . . 10 Electromagnetic 16 | . . . 16 Robot Hit Streak 14 | . 12 14 11 Robot Miss Streak 3 | . 3 2 3 Penetration Max . | . . . . Secondary Targets . | . . . . Shots Hit Robots 146 | . 65 49 32 Core Hits 49 | . 22 13 14 Critical Kills . | . . . . Critical Parts Destroyed 1 | . . 1 . Critical Strikes 6 | . 4 2 . Burn 5 | . 4 1 . Destroy 1 | . . 1 . Melee Attacks . | . . . . Impact . | . . . . Slashing . | . . . . Piercing . | . . . . Sneak Attacks . | . . . . Combat Hostiles . | . . . . Follow-up Attacks . | . . . . Damage Inflicted 2484 | . 833 771 880 Guns 1452 | . 833 357 262 Cannons 685 | . . 414 271 Explosions 338 | . . . 338 Melee . | . . . . Ramming . | . . . . Kinetic 544 | . 432 112 . Thermal 1331 | . 401 659 271 Explosive 338 | . . . 338 Electromagnetic 271 | . . . 271 Impact . | . . . . Slashing . | . . . . Piercing . | . . . . Highest Corruption . | . . . . Average Corruption . | . . . . Corruption Purged . | . . . . Corruption Blocked . | . . . . Overload Shots . | . . . . Overflow Damage 45 | . . . 45 Projectiles 9 | . . . 9 Explosions 36 | . . . 36 Melee . | . . . . Knockbacks . | . . . . Impact . | . . . . Kinetic . | . . . . Secondary . | . . . . Self-Inflicted Damage 275 | . . . 275 Shots 7 | . . . 7 Rammed . | . . . . Targets Rammed . | . . . . Kicked . | . . . . Crushed . | . . . . Highest Temperature 468 | . 248 51 468 Average Temperature 108 | . 78 18 180 Received Heat Transfer 939 | . 129 90 720 Effects 6 | . 1 . 5 Shutdowns 1 | . . . 1 Energy Bleed 1 | . . . 1 Interference 4 | . 1 . 3 Siege Activations . | . . . . Robots Corrupted . | . . . . Combat Hostiles . | . . . . Parts Fried 1 | . . . 1 Impact Corruptions . | . . . . Robots Melted . | . . . . Combat Hostiles . | . . . . Parts Melted 4 | . 3 1 . Heat Transferred 3326 | . 1480 1446 400 Parts Sabotaged . | . . . . Parts Stolen . | . . . . Parts Stripped . | . . . . Power Chain Reactions . | . . . . Alert | -11 -10 -10 -8 ------- Run | Yrd Mat Sub Mat Peak Influence 115 | . 115 . 99 Initial . | . . . . Average 41 | . 41 . 45 Maximum Alert Level . | . . . . Low Security (%) 100 | 100 100 . 100 Level 1 . | . . . . Level 2 . | . . . . Level 3 . | . . . . Level 4 . | . . . . Level 5 . | . . . . High Security . | . . . . Max Security . | . . . . Squads Dispatched 7 | . 4 . 3 Investigation 3 | . 1 . 2 Extermination . | . . . . Reinforcement 4 | . 3 . 1 Assault . | . . . . Garrison . | . . . . Intercept . | . . . . Searches Triggered . | . . . . Construction Impeded . | . . . . Haulers Reinforced . | . . . . Active Scanning Responses . | . . . . Cargo Convoy Interrupts . | . . . . Stealth | -11 -10 -10 -8 --------- Run | Yrd Mat Sub Mat Distress Signals 4 | . 2 . 2 Communications Jammed . | . . . . Distress Signals . | . . . . Times Spotted 39 | . 18 7 14 Peak Tracking Total 6 | . 5 2 6 Tactical Retreats 2 | . 2 . . Traps | -11 -10 -10 -8 ------- Run | Yrd Mat Sub Mat Traps Triggered 2 | . 1 . 1 Indirectly . | . . . . Trap Hack Attempts . | . . . . Triggered . | . . . . Disarmed . | . . . . Reprogrammed . | . . . . Reused 1 | . . . 1 Traps Extracted . | . . . . Installed 1 | . . . 1 Triggered 1 | . . . 1 Most Traps Carried 1 | . . 1 1 Machines | -11 -10 -10 -8 ---------- Run | Yrd Mat Sub Mat Machines Disabled 1 | . . . 1 Max in Single Turn 1 | . . . 1 Machines Repaired . | . . . . Machines Dismantled . | . . . . Machines Sabotaged . | . . . . Overloaded Fab Kills . | . . . . Hacking | -11 -10 -10 -8 --------- Run | Yrd Mat Sub Mat Machines Accessed 3 | . 2 . 1 Terminals 2 | . 1 . 1 Fabricators . | . . . . Repair Stations 1 | . 1 . . Recycling Units . | . . . . Scanalyzers . | . . . . Garrison Access . | . . . . Total Hacks 9 | . 5 . 4 Successful 3 | . 3 . . Failed 6 | . 2 . 4 Catastrophic 2 | . . . 2 Database Lockouts . | . . . . Manual 3 | . 3 . . Terminals 7 | . 3 . 4 Fabricators . | . . . . Repair Stations 2 | . 2 . . Recycling Units . | . . . . Scanalyzers . | . . . . Garrison Access . | . . . . Terminal Hacks 1 | . 1 . . Recall Reinforcements 1 | . 1 . . Fabricator Hacks . | . . . . Repair Station Hacks 2 | . 2 . . Scan Component 1 | . 1 . . Repair 1 | . 1 . . Recycling Unit Hacks . | . . . . Scanalyzer . | . . . . Garrison Access Hacks . | . . . . Unauthorized Hacks . | . . . . Terminals . | . . . . Fabricators . | . . . . Repair Stations . | . . . . Recycling Units . | . . . . Scanalyzers . | . . . . Garrison Access . | . . . . Data Cores Recovered 1 | . 1 . . Used 1 | . 1 . . Hacking Detections 3 | . 2 . 1 Full Trace Events 1 | . . . 1 Feedback Events . | . . . . Feedback Blocked . | . . . . Robot Schematics Acquired . | . . . . Robots Built . | . . . . Authchips . | . . . . Time . | . . . . Total Robot Build Rating . | . . . . Part Schematics Acquired . | . . . . Parts Built . | . . . . Authchips . | . . . . Time . | . . . . Total Part Build Rating . | . . . . Parts Repaired 1 | . 1 . . Time 38 | . 38 . . Parts Recycled . | . . . . Recycled Matter . | . . . . Retrieved Matter . | . . . . Retrieved Components . | . . . . Parts Scanalyzed . | . . . . Part Schematics Acquired . | . . . . Parts Damaged . | . . . . Bothacking | -11 -10 -10 -8 ------------ Run | Yrd Mat Sub Mat Used RIF Installer . | . . . . Robots Hacked . | . . . . Non-combat . | . . . . Combat . | . . . . Robot Hacks Applied . | . . . . Relay Couplers Released . | . . . . Fabnet Peak Effective % . | . . . . Robots Rewired . | . . . . Allies Hacked . | . . . . Hacks Repelled . | . . . . Allies | -11 -10 -10 -8 -------- Run | Yrd Mat Sub Mat Total Allies . | . . . . Largest Group . | . . . . Highest-Rated Group . | . . . . Highest-Rated Ally . | . . . . Total Orders . | . . . . Ally Attacks . | . . . . Total Damage . | . . . . Kills . | . . . . Allies Corrupted . | . . . . Allies Melted . | . . . . Intel | -11 -10 -10 -8 ------- Run | Yrd Mat Sub Mat Robot Analysis Total . | . . . . Derelict Logs Recovered 1 | . . 1 . Drone Launches . | . . . . Drone Recoveries . | . . . . Exploration | -11 -10 -10 -8 ------------- Run | Yrd Mat Sub Mat Turns Passed 2393 | 70 1271 526 526 Spaces Moved 1394 | 53 716 368 257 Core 43 | 24 . . 19 Treads 54 | . . . 54 Legs 329 | 29 284 . 16 Wheels 361 | . . 296 65 Hover 607 | . 432 72 103 Flight . | . . . . Fastest Speed 50 | 50 116 110 80 Average Speed 120 | 112 118 111 144 Slowest Speed 250 | 150 240 120 250 Overloaded Moves . | . . . . Propulsion Burnouts . | . . . . Robots Hopped . | . . . . Cave-ins Triggered . | . . . . Exploration Rate (%) 32 | 4 73 31 23 Regions Visited 3 Branch Regions 1 Pre-discovered Areas 1 | . . 1 . Known Exits Taken . | . . . . Unknown Exits Taken 3 | 1 1 1 . Scrap Searched 3 | . . 3 . Spaces Dug 10 | . . . 10 Terrain Destroyed 52 | . . . 52 Melee . | . . . . Projectile . | . . . . AOE 52 | . . . 52 Terrain Rammed . | . . . . Walls Destroyed . | . . . . Machines Disabled . | . . . . Actions | -11 -10 -10 -8 --------- Run | Yrd Mat Sub Mat Total 1894 | 61 1047 426 360 Wait 278 | . 234 3 41 Move 1391 | 52 715 367 257 Hop . | . . . . Pick Up 23 | 4 14 3 2 Fast Attach 27 | 4 9 4 10 Attach 13 | 1 . 4 8 Detach 10 | . 3 3 4 Swap 9 | . 3 3 3 Drop 22 | . 14 7 1 Fire 120 | . 55 32 33 Melee . | . . . . Ram . | . . . . Kick . | . . . . Crush . | . . . . Escape Stasis . | . . . . Rewire . | . . . . Trap 1 | . . . 1 Miscellaneous . | . . . . Route ------- -11/Scrapyard -10/Materials (discovered 4 exits: [*Mat] / [*Min x2] / [*Sub]) -10/Subcaves -8/Materials History --------- Turn | Location | Event 34 | -11/Scrapyard | Discovered new exit (range 15) 71 | -11/Scrapyard | Entered Materials 300 | -10/Materials | Build established: Mutant 560 | -10/Materials | Discovered new exit (range 10) 571 | -10/Materials | Derelicts attacked the area 952 | -10/Materials | Discovered new exit (range 16) 1050 | -10/Materials | Build established: Scavenger-Mutant 1098 | -10/Materials | Repaired Lgt. Nuclear Core 1246 | -10/Materials | Discovered new exit (range 3) 1335 | -10/Materials | Discovered new exit (range 3) 1342 | -10/Materials | Entered Subcaves 1455 | -10/Subcaves | Core integrity fell below 50% 1457 | -10/Subcaves | Lost 3 parts (2n1w) 1616 | -10/Subcaves | Learned location of Mines (-10) 1845 | -10/Subcaves | Lost 3 parts (1p1n1w) 1863 | -10/Subcaves | Discovered new exit (range 5) 1868 | -10/Subcaves | Entered Materials 1868 | -8/Materials | Evolved 4 slots: Propulsion x2, Utility x2 2183 | -8/Materials | Lost 8 parts (1p4n1u2w) 2317 | -8/Materials | Core integrity fell below 50% 2374 | -8/Materials | Core integrity fell below 20% 2394 | -8/Materials | Destroyed by G-47 Trooper with Particle Gun Last Messages --------------- 02335_ R-06 Scavenger collects Terrain Scanner. 02335_ U-05 Engineer builds a Wall. 02335_ U-05 Engineer lays Concrete. 02339_ U-05 Engineer builds a Wall. 02339_ U-05 Engineer lays Concrete. 02340_ U-05 Engineer builds a Wall. 02340_ U-05 Engineer lays Concrete. 02341_ U-05 Engineer builds a Wall. 02349_ G-47 Trooper triggered Piercing Trap. 02349_ Spikes shoot up from the floor. 02349_ G-47 Trooper suffers critical hit (Impale). 02352_ U-05 Engineer builds a Wall. 02357_ U-05 Engineer lays Concrete. 02376_ Adv. Treads destroyed. 02377_ Acquired Welding Torch. 02382_ Critical hit (Burn: +37). 02386_ Welding Torch destroyed. 02388_ Wheel destroyed. 02391_ S-10 Pest destroyed. 02392_ Acquired 14 matter. Map ----- +----------------------------------------------------+ | ??????????????????????????????????????????? | | ??????????????????????????????????????????? | | ??????????????????????????????????????????? | | ??????????????????????????????????????????? | | ??????????????????????????????????????????? | | ??????????????????????????????????????????? | | ??????????????????????????????????????????? | | ??????????????????????????????????????????? | | ??????????????????????????????????????????? | | ????????????????????????####??????????????? | | ???????????????????????# ??????????????? | | ???????????????????????# ??????????????? | | ???????????????????????# ??????????????? | | ???????????????????????# #??????????????? | | ???????????????????????# #??????????????? | | ???????????????????????# #??????????????? | | ??????????????????????## +??????????????? | | ??????????????????????? #??????????????? | | ??????????????????????? #??????????????? | | ??????????????????????? #??????????????? | | ???????????????????????# #??????????????? | | ???????????????????????#s #??????????????? | | ???????????????????????# #??????????????? | | ???????????????????????#s #??????????????? | | ???????????????????????# #??????????????? | | ???????????????????????# @ #??????????????? | | ??????????#######?????## = ##?????????????? | | ??????????# ####### #?????????????? | | ??????????# g #?????????????? | | ??????????# g Y #?????????????? | | ??????????# #?????????????? | | ??????????# ####### #?????????????? | | ####??????## ##############?????????????? | | #???????# # ! #???????????????????? | | #######?# # #???????????????????? | | # #?# + """ #???????????????????? | | # #?# # """ #???????????????????? | | # " #?# # """ #???????????????????? | | # """ #?# # #???????????????????? | | # "" #?# ##########???????????????????? | | # """ #?# #????????????????????????????? | | # "" #?# #????????????????????????????? | | # """ #?# #????????????????????????????? | | # """ #?# #????????????????????????????? | | # """ #?# #????????????????????????????? | | # " #?# #????????????????????????????? | | +### #?# #????????????????????????????? | | ###+##### #????????????????????????????? | | #????????????????????????????? | | #????????????????????????????? | +----------------------------------------------------+ Best States ------------- Heat Dissipation 45 Coolant Potential 50 Energy Generation 14 Energy Capacity 275 Matter Stores 300 Matter Capacity 300 Sight Range 20 Terrain Scan Range 16 Terrain Scan Density 10 Armor Coverage 225 Propulsion Shielding 33 Evasion (%) 55 Targeting Accuracy 12 Recoil Reduction 1 Offensive Hacking 10 Defensive Hacking 11 Item Schematics ----------------- None Robot Schematics ------------------ None Fabricated ------------ Nothing Alien Tech Used ----------------- None Achievements -------------- None Challenges ------------ None Game ------ Seed FrostGrenadeCanceller Manual? 0 Play Time 00:16:38 Cumulative 94.7 hours Start 2024.04.15 @ 19:49:51 End 2024.04.15 @ 20:05:42 Sessions 1 Manual Loads 0 Difficulty Rogue Special Mode None Game No. 190 Rogue 190 Adventurer 0 Explorer 0 Win Type - Total 0 Types 0/0/0/0/0/0/0/0/0 Lore% 30 Gallery% 49 Achievement% 35 Wizard Run 0 Options --------- Layout 0 ASCII 0 Keyboard 1 Movement Numpad Keybinds 0 Fullscreen 1 Font 18/X11 Map View 76x50 Zoom Use 0% Tactical HUD 1 Map Filters NONE Filters NONE Steam 1 RUN: 29898f3f-d63e-4c7e-973b-d4b4cacf9827